bitfinex/quotes_ETHUSD_20260110
["timestamp","ask_amount","ask_price","bid_price","bid_amount"]
[1768047669746,0.98982533,3100.1,3099.4,4.68662201]
[1768047672939,0.98982533,3100.1,3099.4,7.91303506]
[1768047673131,0.98982533,3100.1,3099.7,0.001]
[1768047689862,0.99062965,3100.3,3099.7,0.001]
[1768047690447,0.00080432,3100.3,3099.7,0.91789592]
[1768047692242,0.00080432,3100.3,3099.8,0.91689592]
[1768047692445,0.00080432,3100.3,3099.8,1.3312959]
[1768047696474,0.002,3100.0,3099.8,1.3312959]
[1768047698876,0.002,3100.0,3099.8,4.5573039]
[1768047702385,0.002,3100.0,3099.8,1.3312959]
[1768047703456,0.002,3100.0,3099.8,0.41439998]
[1768047703668,0.002,3100.0,3099.7,0.001]
[1768047731722,0.92776669,3099.9,3099.7,0.001]
[1768047732527,0.002,3100.0,3099.7,0.001]
[1768047732734,0.92976669,3100.0,3099.7,0.001]
[1768047736204,0.002,3100.0,3099.7,0.001]
[1768047740942,0.92776669,3099.9,3099.7,0.001]
[1768047741125,0.92776669,3099.9,3099.4,0.0008]
[1768047748848,0.92776669,3099.7,3099.4,0.0008]
[1768047751050,0.92776669,3099.7,3099.1,0.0008]
[1768047751715,0.92776669,3099.6,3099.1,0.0008]
[1768047752116,0.92776669,3099.3,3098.8,0.00080576]
[1768047766429,0.92776669,3099.3,3099.1,0.001]
[1768047766630,0.92453898,3099.1,3098.8,0.00080576]
[1768047773975,6.73115011,3099.1,3098.7,0.0008]
[1768047775676,0.92453898,3099.1,3098.7,0.0008]
[1768047777683,0.99689223,3099.2,3099.1,0.001]
[1768047777890,0.00080576,3099.2,3099.1,0.001]
[1768047778189,0.00080576,3099.2,3098.7,0.0008]
[1768047778568,0.92110468,3099.2,3098.7,0.0008]
[1768047781178,0.92029892,3099.1,3098.7,0.0008]
[1768047784276,0.92029892,3099.1,3098.3,0.001]
[1768047784277,0.94235725,3098.8,3098.3,0.001]
[1768047784898,5.80661113,3098.9,3098.3,0.001]
[1768047785997,1.93779475,3099.0,3098.3,0.001]
[1768047786201,1.93779475,3099.0,3098.3,0.90520971]
[1768047786367,0.94235725,3099.0,3098.3,0.90520971]
[1768047789383,0.94235725,3099.0,3098.6,0.001]
[1768047789585,0.002,3098.7,3098.6,0.001]
[1768047789897,0.94435725,3099.0,3098.6,0.001]
[1768047791596,0.94235725,3098.6,3097.5,3.86]
[1768047791794,0.9532468,3098.1,3097.5,4.76420971]
[1768047791959,5.80821769,3098.2,3097.5,0.90420971]
[1768047792162,0.00160656,3098.2,3097.5,0.90420971]
[1768047792364,0.00160656,3098.2,3097.5,4.13260864]
[1768047792595,0.00160656,3098.2,3097.6,3.22826794]
[1768047792796,0.00160656,3098.2,3097.6,4.13247765]
[1768047792978,0.00160656,3098.2,3097.6,0.90420971]
[1768047794387,0.00160656,3098.2,3097.6,4.13248322]
[1768047795506,0.00160656,3098.2,3097.6,0.90420971]
[1768047795800,0.00160656,3098.2,3097.6,4.13249247]
[1768047796002,0.00160656,3098.2,3097.6,0.90420971]
[1768047798195,0.00160656,3098.2,3097.6,4.13246341]
[1768047799810,0.00160656,3098.2,3097.6,0.90420971]
[1768047802206,0.00160656,3098.2,3098.0,0.001]
[1768047810207,0.41715641,3098.1,3098.0,0.001]
[1768047810988,0.94396381,3098.2,3098.0,0.001]
[1768047826908,0.94396381,3098.2,3097.6,0.002]
[1768047837974,0.94396381,3098.2,3098.0,0.002]
[1768047842388,0.00160656,3098.2,3098.0,0.002]
[1768047863123,0.96926026,3098.2,3098.0,0.002]
[1768047863494,0.00160656,3098.2,3098.0,0.002]
[1768047872826,0.96926026,3098.2,3097.7,3.861]
[1768047873016,1.38901623,3098.2,3097.7,3.861]
[1768047875137,0.92634938,3098.1,3097.7,3.861]
[1768047877602,0.92634938,3098.1,3097.7,0.001]
[1768047880028,0.92634938,3098.0,3097.6,0.002]
[1768047880238,0.67377797,3097.9,3097.6,0.002]
[1768047885242,1.60012735,3097.9,3097.6,0.002]
[1768047886150,0.92634938,3097.8,3097.6,0.002]
[1768047887222,0.92634938,3097.8,3097.5,0.002]
[1768047903778,0.91735074,3097.7,3097.4,0.0008]
[1768047903963,1.65760664,3097.7,3097.4,0.0008]
[1768047910551,0.7402559,3097.7,3097.4,0.0008]
[1768047913891,0.67377797,3097.9,3097.4,0.0008]
[1768047914067,0.67377797,3097.9,3097.4,0.97593757]
[1768047914258,0.254,3098.0,3097.5,1.00742167]
[1768047918195,0.001,3097.7,3097.5,1.00742167]
[1768047919063,0.001,3097.7,3097.4,0.0008]
[1768047919665,0.001,3097.7,3097.4,0.97593757]
[1768047921300,0.001,3097.7,3097.4,0.0008]
[1768047938343,0.96015203,3097.7,3097.4,0.0008]
[1768047965095,0.001,3097.7,3097.4,0.0008]
[1768048016455,0.001,3097.7,3097.4,0.90899911]
[1768048022625,0.98078845,3097.7,3097.4,0.90899911]
[1768048033800,0.98078845,3097.7,3097.4,0.0008]
[1768048039297,0.97223906,3097.6,3097.4,0.0008]
[1768048045324,0.97223906,3097.5,3096.8,0.97188103]
[1768048045484,0.97223906,3097.5,3096.8,0.00280584]
[1768048045984,0.97223906,3097.5,3096.8,0.93633088]
[1768048052320,1.41394679,3097.5,3096.8,0.93633088]
[1768048055232,1.41394679,3097.5,3097.1,0.002]
[1768048056931,0.92591663,3097.4,3097.1,0.002]
[1768048057497,0.44170773,3097.5,3097.1,0.002]
[1768048058724,1.36762436,3097.5,3097.1,0.002]
[1768048064540,0.92591663,3097.4,3097.1,0.002]
[1768048064926,0.69570773,3097.5,3097.1,0.002]
[1768048064927,0.92591663,3097.2,3097.1,0.002]
[1768048065330,0.92591663,3097.4,3097.1,0.002]
[1768048072558,0.94628374,3097.1,3096.6,8.05685608]
[1768048074048,0.94628374,3097.1,3096.6,4.19843505]
[1768048074951,0.94628374,3097.1,3096.6,0.96911589]
[1768048078331,0.94728374,3097.1,3096.6,0.96911589]
[1768048084819,0.94728374,3097.1,3096.4,0.002]
[1768048085152,0.94728374,3097.1,3096.5,0.96922234]
[1768048086524,0.94728374,3097.1,3096.4,0.002]
[1768048087027,0.94728374,3097.1,3096.4,0.97122234]
[1768048087657,0.94728374,3097.1,3096.4,4.20077866]
[1768048089331,0.94728374,3097.1,3096.4,0.97122234]
[1768048089663,0.001,3096.8,3096.4,0.97122234]
[1768048089962,0.001,3096.8,3096.4,5.09838443]
[1768048094669,0.001,3096.8,3096.4,0.97122234]
[1768048096266,0.001,3096.8,3096.4,4.20076975]
[1768048098968,0.001,3096.8,3096.4,0.97122234]
[1768048101401,0.97623628,3096.8,3096.4,0.97122234]
[1768048115610,0.97623628,3096.8,3096.4,0.002]
[1768048120705,1.42215356,3096.8,3096.4,0.002]
[1768048121806,0.97623628,3096.8,3096.4,0.002]
[1768048130028,0.001,3096.8,3096.4,0.002]
[1768048139966,0.9085906,3096.8,3096.4,0.002]
[1768048142886,0.001,3096.8,3096.4,0.99351988]
[1768048143498,0.001,3096.8,3096.4,0.002]
[1768048201251,0.90155313,3096.8,3096.4,0.002]
[1768048249377,1.34000192,3096.8,3096.4,0.002]
[1768048249958,0.90155313,3096.8,3096.4,0.002]
[1768048284330,0.001,3096.8,3096.4,0.002]
[1768048285329,0.001,3096.8,3096.4,0.90868563]
[1768048287109,0.001,3096.8,3096.4,0.002]
[1768048310042,0.16927398,3098.2,3097.1,0.90882385]
[1768048310214,0.16904452,3098.2,3097.8,0.00080664]
[1768048310415,0.00057054,3098.2,3097.8,0.00080664]
[1768048310648,0.91986194,3097.9,3097.4,0.0008008]
[1768048310952,0.91986194,3097.5,3096.8,0.00080592]
[1768048311355,0.91986194,3097.5,3096.9,0.91986194]
[1768048312357,0.9035428,3097.4,3096.9,0.91986194]
[1768048316658,0.9035428,3097.4,3097.2,0.002]
[1768048321760,0.9035428,3097.4,3096.9,0.002]
[1768048321975,0.9035428,3097.3,3096.9,0.002]
[1768048323153,0.9035428,3097.1,3096.4,0.002]
[1768048325953,0.97169913,3097.0,3096.4,0.002]
[1768048329133,0.97169913,3097.0,3096.7,0.002]
[1768048329535,0.97169913,3096.9,3096.0,8.03030702]
[1768048329735,0.97169913,3096.9,3096.0,4.17587612]
[1768048330031,0.97169913,3096.9,3096.0,0.94594029]
[1768048330231,1.45849396,3096.9,3096.0,0.94594029]
[1768048330444,0.97169913,3096.8,3096.0,0.94594029]
[1768048332660,0.97169913,3096.8,3095.8,0.94874517]
[1768048332829,0.97169913,3096.8,3095.9,0.254]
[1768048333046,0.97169913,3096.8,3095.9,4.17598537]
[1768048333269,0.97169913,3096.7,3095.9,4.17598537]
[1768048333778,0.97169913,3096.7,3095.8,3.23295902]
[1768048334075,0.97169913,3096.7,3095.9,0.94594029]
[1768048336883,0.97169913,3096.7,3095.9,4.17601808]
[1768048337648,0.97169913,3096.7,3095.9,0.94594029]
[1768048337881,0.97169913,3096.6,3095.9,0.94594029]
[1768048338468,0.97169913,3096.6,3095.9,4.17601532]
[1768048339484,1.44045388,3096.8,3095.9,4.17601532]
[1768048340185,1.44045388,3096.8,3096.0,0.94594029]
[1768048341004,1.44045388,3096.8,3096.2,0.002]
[1768048341188,0.51563222,3096.7,3096.2,0.002]
[1768048344592,0.51363222,3096.7,3096.2,0.002]
[1768048348482,1.48533135,3096.7,3096.2,0.002]
[1768048351879,0.97169913,3096.7,3096.2,0.002]
[1768048352993,0.001,3096.8,3096.2,0.002]
[1768048353199,0.97269913,3096.8,3096.2,0.002]
[1768048354099,0.001,3096.5,3096.2,0.002]
[1768048365224,0.94175731,3096.5,3095.9,0.002]
[1768048365584,0.94175731,3096.5,3096.1,0.002]
[1768048367391,0.94075731,3096.4,3095.9,0.002]
[1768048367591,0.94075731,3096.3,3095.9,0.002]
[1768048370627,0.94075731,3096.2,3095.9,0.002]
[1768048373421,0.9429852,3096.0,3095.1,0.002]
[1768048373589,0.00080448,3095.3,3094.7,0.97622931]
[1768048374723,0.00080448,3095.3,3094.9,4.20729091]
[1768048374919,0.00080448,3095.3,3095.0,0.42072909]
[1768048375426,0.00080448,3095.3,3094.9,4.20729091]
[1768048378050,0.00080448,3095.3,3095.0,0.002]
[1768048391409,0.99545849,3096.0,3095.0,0.98319766]
[1768048391694,0.00080488,3096.2,3095.2,0.98119766]
[1768048391855,0.00080488,3096.2,3095.4,0.98119766]
[1768048392050,0.99626337,3096.2,3095.2,0.41427411]
[1768048392252,0.99545849,3096.0,3095.0,3.8564309]
[1768048392665,0.99545849,3096.0,3095.0,7.08738032]
[1768048393568,0.99545849,3096.0,3095.0,8.06857798]
[1768048396405,0.99545849,3096.0,3095.0,4.21414708]
[1768048396560,0.99545849,3095.8,3095.0,4.21414708]
[1768048402117,0.001,3095.5,3095.0,4.21414708]
[1768048402868,0.001,3095.5,3095.1,0.98119766]
[1768048404517,0.001,3095.5,3095.2,0.98119766]
[1768048405609,0.001,3095.5,3094.2,3.23183661]
[1768048405610,0.99545849,3095.4,3094.2,3.23183661]
[1768048405904,1.16411999,3095.2,3094.0,0.98119766]
[1768048406104,1.16411999,3095.2,3094.0,3.231998]
[1768048406303,1.16411999,3095.2,3094.0,4.21319566]
[1768048406712,0.99545849,3095.1,3094.0,4.21319566]
[1768048406894,0.43950295,3095.0,3094.1,0.98119766]
[1768048407096,0.99545849,3095.1,3094.2,0.98119766]
[1768048407300,0.99545849,3095.1,3094.2,2.42147975]
[1768048408328,0.99545849,3095.1,3094.2,0.98119766]
[1768048408531,0.99545849,3095.1,3094.0,4.46724811]
[1768048408903,0.99545849,3095.0,3094.0,3.48605045]
[1768048409099,0.99545849,3094.9,3093.7,0.98400166]
[1768048409330,0.99545849,3094.7,3093.7,0.002804]
[1768048410820,0.99545849,3094.6,3093.7,0.002804]
[1768048411021,0.99545849,3094.4,3093.7,0.002804]
[1768048411543,0.42268487,3094.5,3093.7,0.98400166]
[1768048411750,0.99545849,3094.6,3093.7,0.98400166]
[1768048412035,0.99545849,3094.5,3093.7,0.98400166]
[1768048414336,0.99545849,3094.5,3094.0,0.002]
[1768048415804,0.254,3094.6,3094.0,0.93980437]
[1768048416005,0.90520208,3094.9,3094.0,0.93980437]
[1768048416216,0.90520208,3094.9,3094.0,0.97212499]
[1768048416404,0.90520208,3094.8,3094.0,0.93980437]
[1768048416618,3.23101848,3095.0,3094.0,0.93980437]
[1768048416619,0.90520208,3095.0,3094.0,0.93980437]
[1768048417703,0.90520208,3095.0,3094.2,0.93780437]
[1768048419417,0.90520208,3095.0,3094.0,4.42582029]
[1768048419614,0.90520208,3094.9,3094.0,0.256]
[1768048420207,0.90520208,3094.8,3094.0,0.002]
[1768048420641,0.90520208,3094.3,3093.7,0.002804]
[1768048421947,0.90520208,3094.6,3093.7,0.002804]
[1768048424446,0.90520208,3094.5,3093.7,0.002804]
[1768048424755,0.90520208,3094.3,3093.7,0.002804]
[1768048426869,0.90620208,3094.3,3093.7,0.002804]
[1768048428423,0.001,3094.3,3093.7,0.94060837]
[1768048429650,0.001,3094.3,3093.8,0.93780437]
[1768048429960,0.001,3094.3,3093.9,0.97012603]
[1768048430122,0.001,3094.3,3094.0,0.93780437]
[1768048431166,0.001,3094.3,3094.0,4.16982621]
[1768048431726,0.001,3094.3,3094.0,4.20214683]
[1768048432937,0.001,3094.3,3094.0,0.93780437]
[1768048438866,0.001,3094.3,3094.1,0.96207092]
[1768048439049,0.001,3094.3,3094.0,3.23201762]
[1768048439050,0.001,3094.3,3094.2,1.38147977]
[1768048441433,0.92736981,3094.9,3094.2,4.61333291]
[1768048442170,1.18136981,3095.1,3094.3,0.96207092]
[1768048442370,0.00080456,3095.3,3094.5,0.96207092]
[1768048443039,0.00080456,3095.3,3094.8,0.96207092]
[1768048443255,0.00080456,3095.3,3095.0,0.96207092]
[1768048444162,0.00080456,3095.3,3094.9,0.254]
[1768048449093,0.90585206,3095.3,3094.8,0.254]
[1768048449656,0.90585206,3095.3,3094.6,4.16207622]
[1768048449863,0.001,3095.0,3094.7,3.4853305]
[1768048450062,0.90585206,3095.3,3094.7,3.4853305]
[1768048450355,0.90585206,3095.3,3094.7,0.254]
[1768048450687,0.90585206,3095.3,3094.7,3.48531811]
[1768048451191,0.90585206,3095.3,3094.8,3.23122168]
[1768048451700,0.90585206,3095.3,3094.8,3.48522168]
[1768048453095,0.90585206,3095.3,3094.8,0.254]
[1768048454398,0.90585206,3095.3,3094.8,3.48521622]
[1768048455795,0.90585206,3095.3,3094.7,3.23133098]
[1768048455991,0.90585206,3095.3,3094.8,0.254]
[1768048459902,0.90585206,3095.3,3094.8,3.48522504]
[1768048462103,0.001,3095.0,3094.8,3.48522504]
[1768048462403,0.90585206,3095.3,3094.8,3.23122504]
[1768048463303,0.90585206,3095.3,3094.8,4.38140071]
[1768048464670,0.90585206,3095.3,3094.8,1.15017567]
[1768048466306,0.90585206,3095.3,3094.8,4.3814007]
[1768048467471,0.90585206,3095.3,3094.8,1.15017567]
[1768048469203,0.90585206,3095.3,3094.8,4.38137346]
[1768048469418,0.90585206,3095.3,3094.9,0.72914654]
[1768048472694,0.90585206,3095.3,3094.7,7.33973662]
[1768048473810,0.90585206,3095.3,3094.7,4.1084309]
[1768048474027,0.001,3095.0,3094.7,4.1084309]
[1768048474185,0.90585206,3095.3,3094.7,4.1084309]
[1768048475138,0.90585206,3095.3,3094.7,7.33975834]
[1768048475438,0.90585206,3095.3,3094.8,0.73397583]
[1768048482733,0.90585206,3095.3,3094.8,3.96519619]
[1768048483807,0.00080456,3095.3,3094.8,3.96519619]
[1768048484002,0.00080456,3095.3,3094.9,0.94817695]
[1768048486238,0.001,3095.0,3094.9,4.17929911]
[1768048486412,0.00080456,3095.3,3094.9,8.2502708]
[1768048486614,0.001,3095.5,3095.1,0.94817695]
[1768048489636,0.001,3095.5,3095.1,4.17900507]
[1768048495654,0.99495117,3096.1,3095.3,0.97347778]
[1768048495835,0.00080488,3096.2,3095.3,0.97347778]
[1768048496033,0.00080488,3096.2,3095.5,0.97347778]
[1768048498238,0.00080488,3096.2,3095.6,3.23039152]
[1768048498650,0.99575605,3096.2,3095.6,3.23039152]
[1768048502527,0.99575605,3096.2,3095.5,0.254]
[1768048503663,0.99575605,3096.2,3095.5,3.48449127]
[1768048503828,0.99575605,3096.2,3095.5,4.24627284]
[1768048505536,0.99575605,3096.2,3095.6,0.03230391]
[1768048507772,0.00080488,3096.2,3095.6,4.20171395]
[1768048507975,0.00080488,3096.2,3095.6,4.16941004]
[1768048508283,0.00080488,3096.2,3095.7,0.93912011]
[1768048508482,0.00080488,3096.2,3095.8,1.67910027]
[1768048508774,0.001,3096.5,3095.9,0.93912011]
[1768048510166,0.96969326,3096.5,3095.8,0.74078512]
[1768048510479,0.96969326,3096.5,3095.8,0.99478512]
[1768048510649,0.96969326,3096.5,3095.9,0.37756048]
[1768048512681,0.96969326,3096.5,3095.9,3.60761853]
[1768048513375,0.001,3096.5,3096.0,0.93912011]
[1768048514452,0.001,3096.5,3096.2,0.93912011]
[1768048517082,0.001,3096.5,3096.2,4.16881078]
[1768048517281,0.001,3096.5,3096.3,0.73986806]
[1768048519364,0.001,3096.8,3096.3,3.96949295]
[1768048519796,0.001,3096.8,3096.3,0.73986806]
[1768048521000,0.001,3096.8,3096.3,3.9695272]
[1768048521162,0.001,3096.8,3096.4,0.49086473]
[1768048522902,3.48242507,3097.5,3096.4,0.49086473]
[1768048522903,0.96869326,3097.7,3096.8,0.000806]
[1768048528507,0.96869326,3097.7,3096.8,4.16903254]
[1768048529604,0.96869326,3097.7,3096.8,0.93992611]
[1768048529983,0.96869326,3097.6,3096.8,0.000806]
[1768048531013,0.96869326,3097.5,3096.8,0.000806]
[1768048532796,0.96869326,3097.4,3096.8,0.000806]
[1768048533673,0.99775662,3097.1,3096.8,0.000806]
[1768048540509,0.99775662,3097.0,3096.8,0.000806]
[1768048546030,0.99775662,3097.0,3096.8,0.002806]
[1768048553245,0.32297515,3097.1,3096.8,0.002806]
[1768048553944,0.001,3097.2,3096.8,0.002806]
[1768048558161,0.001,3097.2,3097.1,0.002]
[1768048605717,0.9639155,3097.7,3097.1,0.002]
[1768048606019,0.2548008,3097.8,3097.1,0.91002184]
[1768048606199,0.2548008,3097.8,3097.1,1.32391639]
[1768048606915,0.2528008,3097.8,3097.2,0.90802184]
[1768048607148,0.2528008,3097.8,3097.4,0.0008016]
[1768048607722,0.001,3097.9,3097.4,0.90882344]
[1768048609124,0.001,3097.9,3097.4,0.0008016]
[1768048609421,0.9649155,3097.9,3097.4,0.0008016]
[1768048609618,0.9639155,3097.8,3097.4,0.0008016]
[1768048611905,4.19202663,3097.8,3097.4,0.0008016]
[1768048612825,0.9639155,3097.8,3097.4,0.0008016]
[1768048615901,0.9639155,3097.8,3097.7,0.002]
[1768048617330,4.19201285,3097.8,3097.7,0.002]
[1768048617524,0.95188391,3097.7,3097.4,0.0028016]
[1768048619059,0.95188391,3097.4,3096.8,3.8572369]
[1768048619255,0.95188391,3097.4,3096.8,0.002806]
[1768048621341,4.18050238,3097.3,3096.8,0.002806]
[1768048621646,7.40912085,3097.3,3096.8,0.002806]
[1768048621847,0.74091209,3097.2,3096.8,0.002806]
[1768048626520,0.95188391,3097.3,3096.8,0.002806]
[1768048626853,4.1805335,3097.3,3096.8,0.002806]
[1768048629319,0.95188391,3097.3,3096.8,0.002806]
[1768048629518,0.95188391,3097.3,3097.1,0.002]
[1768048630325,0.92694541,3097.5,3097.1,0.002]
[1768048630526,0.32284369,3097.4,3097.1,0.002]
[1768048631450,0.254,3097.7,3097.1,0.98108952]
[1768048634564,3.48220302,3097.7,3097.1,0.002]
[1768048634866,0.92694541,3097.6,3097.1,0.002]
[1768048639679,0.92694541,3097.5,3097.1,0.002]
[1768048639873,0.92694541,3097.4,3097.1,0.002]
[1768048640554,0.76375486,3097.5,3097.1,0.002]
[1768048641378,0.001,3097.3,3097.1,0.002]
[1768048652997,0.001,3097.2,3097.1,0.002]
[1768048680528,0.98596635,3097.2,3097.1,0.002]
[1768048682034,0.001,3097.2,3097.1,0.002]
[1768048732991,0.96228983,3097.2,3097.1,0.002]
[1768048734884,1.3814749,3097.2,3097.1,0.002]
[1768048740308,0.96228983,3097.2,3097.1,0.002]
[1768048741013,4.19101254,3097.2,3097.1,0.002]
[1768048741311,0.96228983,3097.2,3097.1,0.002]
[1768048746132,4.19101254,3097.2,3097.1,0.002]
[1768048747398,0.90406928,3097.1,3096.8,0.002806]
[1768048747598,1.32327053,3097.1,3096.8,0.002806]
[1768048747794,0.90406928,3097.0,3096.8,0.002806]
[1768048750036,3.64805592,3097.1,3096.8,0.002806]
[1768048752235,4.5521252,3097.1,3096.8,0.002806]
[1768048752438,0.48071252,3097.0,3096.8,0.002806]
[1768048758947,0.255,3097.2,3096.8,0.002806]
[1768048760434,3.48375715,3097.2,3096.8,0.002806]
[1768048763131,4.38782643,3097.2,3096.8,0.002806]
[1768048767854,4.38782643,3097.2,3097.1,0.002]
[1768048768149,4.38782643,3097.2,3096.8,0.002806]
[1768048768319,0.43888264,3097.1,3096.8,0.002806]
[1768048769462,3.66771576,3097.1,3096.8,0.002806]
[1768048775170,0.43888264,3097.1,3096.8,0.002806]
[1768048786876,0.90100335,3097.0,3096.3,0.002]
[1768048787675,3.66772892,3097.1,3096.3,0.99833183]
[1768048787875,0.43888264,3097.1,3096.3,0.99833183]
[1768048788046,0.255806,3097.2,3096.5,0.99633183]
[1768048788446,0.001806,3097.2,3096.5,0.99633183]
[1768048791284,0.001806,3097.2,3096.6,0.96932145]
[1768048791884,0.001806,3097.2,3096.6,0.97132145]
[1768048799081,0.001806,3097.2,3096.6,0.002]
[1768048802429,0.001806,3097.2,3096.6,0.97132145]
[1768048803091,0.99715451,3097.2,3096.6,0.002]
[1768048803571,0.001,3096.9,3096.6,0.002]
[1768048811078,0.001,3096.9,3096.6,0.99022593]
[1768048812474,0.001806,3097.2,3096.9,0.98822593]
[1768048813377,0.001806,3097.2,3096.9,1.40997271]
[1768048816820,0.001806,3097.2,3097.0,0.98822593]
[1768048817523,0.001806,3097.2,3096.9,0.42174678]
[1768048817816,0.001806,3097.2,3096.7,0.98822593]
[1768048820194,0.001806,3097.2,3096.6,0.002]
[1768048821543,0.001806,3097.2,3096.6,3.8564309]
[1768048824643,0.001806,3097.2,3096.7,0.98822593]
[1768048825545,0.001806,3097.2,3096.6,3.8564309]
[1768048825846,0.001806,3097.2,3096.7,0.80740826]
[1768048826928,0.001806,3097.2,3096.9,0.002]
[1768048829543,0.90481318,3097.2,3096.9,0.002]
[1768048840050,0.001806,3097.2,3096.9,0.002]
[1768048887292,0.001806,3097.2,3096.9,0.95232881]
[1768048889806,0.001806,3097.2,3097.0,0.95032881]
[1768048894600,0.001806,3097.2,3096.9,0.002]
[1768048894916,0.001806,3097.2,3096.9,0.96719533]
[1768048923781,0.001806,3097.2,3096.9,0.002]
[1768048954535,0.001806,3097.2,3096.9,0.91492772]
[1768048954706,0.001806,3097.2,3096.9,1.36766438]
[1768048955632,0.001806,3097.2,3096.9,0.45473666]
[1768048955802,0.001806,3097.2,3096.9,0.002]
[1768048985696,0.001806,3097.2,3097.0,0.91292772]
[1768049024436,0.001806,3097.2,3096.9,0.002]
[1768049024734,0.001806,3097.2,3096.9,0.91492772]
[1768049042503,0.0008016,3097.8,3096.9,1.81676178]
[1768049042828,0.91278695,3097.7,3097.0,0.52998704]
[1768049043475,0.91278695,3097.7,3097.0,1.49903719]
[1768049045909,0.91278695,3097.7,3097.0,0.52998704]
[1768049046212,0.91278695,3097.7,3097.1,0.96905015]
[1768049047119,0.0008016,3097.8,3097.2,0.98015101]
[1768049047436,0.0008016,3097.8,3097.3,0.19492012]
[1768049047795,0.0008016,3097.8,3097.3,1.16391706]
[1768049048222,0.0008016,3097.8,3097.3,0.19492012]
[1768049048522,0.0008016,3097.8,3097.4,0.90857195]
[1768049061740,0.001,3097.5,3097.4,0.90857195]
[1768049061947,0.001,3097.5,3097.4,1.11693626]
[1768049065662,0.001,3097.5,3097.4,0.90857195]
[1768049065809,0.001,3097.5,3097.0,4.73900548]
[1768049066008,0.001,3097.5,3097.1,0.90857195]
[1768049066439,0.90857195,3097.5,3097.1,0.90857195]
[1768049066608,0.90857195,3097.5,3097.1,1.16257195]
[1768049067417,0.90857195,3097.5,3097.1,1.60193199]
[1768049067618,0.90857195,3097.5,3097.1,0.69336004]
[1768049067819,0.90857195,3097.5,3097.2,0.90857195]
[1768049076918,0.001,3097.5,3097.2,0.90857195]
[1768049134599,0.001,3097.5,3097.2,0.90657195]
[1768049145531,0.98620419,3097.5,3097.2,0.90657195]
[1768049160177,0.001,3097.5,3097.2,0.90657195]
[1768049271738,0.001,3097.5,3097.2,1.834861]
[1768049271947,0.001,3097.5,3097.2,2.36662839]
[1768049272143,0.001,3097.5,3097.2,1.46005644]
[1768049272346,0.001,3097.5,3097.3,0.12919917]
[1768049278558,0.00061147,3097.8,3097.3,0.12919917]
[1768049278860,0.00061147,3097.8,3097.4,0.03228514]
[1768049279418,0.00061147,3097.8,3097.4,0.43184541]
[1768049279619,0.00061147,3097.8,3097.5,0.96889992]
[1768049286456,0.00061147,3097.8,3097.5,1.91408775]
[1768049286762,0.00061147,3097.8,3097.6,0.03228305]
[1768049287237,0.00061147,3097.8,3097.6,1.00117358]
[1768049289069,0.00061147,3097.8,3097.6,0.59295384]
[1768049289264,0.00061147,3097.8,3097.7,0.96884673]
[1768049291672,0.00137718,3098.2,3097.7,0.96884673]
[1768049292171,0.99514572,3098.4,3097.7,0.96884673]
[1768049292537,0.00080624,3098.4,3097.8,0.94518783]
[1768049292738,0.00080624,3098.4,3097.9,0.19140346]
[1768049293271,0.00080624,3098.4,3098.0,0.96874036]
[1768049297384,0.002,3098.1,3098.0,0.96874036]
[1768049298677,0.00280624,3098.4,3098.0,1.00101924]
[1768049298977,0.00280624,3098.4,3098.1,0.44203977]
[1768049299363,0.00280624,3098.4,3098.1,1.41074885]
[1768049299763,0.00280624,3098.4,3098.1,0.44203977]
[1768049300082,0.00280624,3098.4,3098.2,0.96869657]
[1768049300381,0.99433948,3098.7,3098.2,0.96869657]
[1768049308670,0.99433948,3098.7,3098.3,0.03227576]
[1768049309070,0.99433948,3098.7,3098.5,0.001]
[1768049309803,0.99433948,3098.9,3098.5,0.001]
[1768049311873,0.74433948,3098.9,3098.5,0.001]
[1768049312766,3.22887123,3099.0,3098.5,0.001]
[1768049313384,0.002,3099.0,3098.5,0.001]
[1768049313672,0.002,3099.0,3098.5,0.96961525]
[1768049313883,0.92058641,3099.0,3098.5,0.96961525]
[1768049314275,0.92058641,3099.0,3098.5,1.16294331]
[1768049316101,0.67058641,3099.0,3098.5,1.16294331]
[1768049320531,0.67058641,3099.0,3098.8,0.001]
[1768049321608,0.42058641,3099.0,3098.8,0.001]
[1768049321809,0.2568,3099.1,3098.8,0.001]
[1768049324921,1.17538641,3099.1,3098.8,0.001]
[1768049325222,0.92538641,3099.1,3098.8,0.001]
[1768049325425,0.91858641,3099.1,3098.8,0.001]
[1768049340531,4.55994502,3099.1,3098.8,0.001]
[1768049345948,1.33319711,3099.1,3098.8,0.001]
[1768049346240,0.91858641,3099.1,3098.8,0.001]
[1768049346617,3.22747822,3099.2,3098.8,0.001]
[1768049348522,0.00080576,3099.2,3098.8,0.001]
[1768049354754,0.00080576,3099.2,3099.1,0.001]
[1768049355051,0.00080576,3099.2,3098.8,0.001]
[1768049355254,3.9634095,3099.2,3098.8,0.001]
[1768049366365,3.9634095,3099.2,3099.1,0.001]
[1768049366541,3.9634095,3099.2,3098.8,0.001]
[1768049366858,0.00080576,3099.2,3098.8,0.97557759]
[1768049378091,0.00080576,3099.2,3099.1,0.001]
[1768049414625,0.95978567,3099.2,3099.1,0.001]
[1768049415223,0.00080576,3099.2,3099.1,0.001]
[1768049501947,0.95822729,3099.2,3099.1,0.001]
[1768049502145,0.95842153,3099.1,3098.8,0.001]
[1768049502357,0.95842153,3099.1,3098.4,3.8544309]
[1768049502358,0.95742153,3099.0,3098.4,3.8544309]
[1768049502544,0.95742153,3099.0,3098.0,0.91079591]
[1768049502851,0.96873723,3098.9,3098.0,0.91079591]
[1768049503150,1.15003741,3098.8,3098.0,0.91079591]
[1768049503317,4.1845813,3098.7,3098.0,0.91079591]
[1768049503514,0.95742153,3098.4,3097.7,0.91079591]
[1768049503954,0.95742153,3098.4,3097.3,0.96886863]
[1768049504132,0.95742153,3098.3,3097.5,1.16479591]
[1768049505252,0.95742153,3098.3,3097.5,0.91079591]
[1768049505550,0.95742153,3098.3,3097.5,1.16479591]
[1768049505753,3.22768058,3098.2,3097.5,1.16479591]
[1768049506854,3.22768058,3098.2,3097.6,0.91079591]
[1768049512151,0.93737302,3098.1,3097.3,0.90649631]